[Event "Hungarian Youth-ch U10 2022"]
[Site "Eger"]
[Date "2022.07.24"]
[Round "2.4"]
[White "Molnar-Saska, Tamas"]
[Black "Hangay, Oliver"]
[Result "0-1"]
[ECO "C22"]
[WhiteElo "1455"]
[BlackElo "1695"]
[Annotator "NA RC COMBH"]
[PlyCount "44"]
[EventDate "2022.07.21"]
[EventType "tourn"]
[EventCountry "HUN"]
[SourceTitle "playchess.com"]
[Source "ChessBase"]
[SourceQuality "1"]
[TimeControl "40/5400+30:1800+30"]

1. e4 {[%emt 0:00:33]} e5 {[%emt 0:00:54]} 2. d4 {[%emt 0:00:08]} exd4 {[%emt 0:00:43]} 3. Qxd4 {[%emt 0:00:09]} Nc6 {[%emt 0:01:08]} 4. Qc4 {[%emt 0:00:20]} Nf6 {[%emt 0:01:58]} 5. Nc3 {[%emt 0:00:57]} Bb4 {[%emt 0:02:35]} 6. Bd2 {[%emt 0:01:06]} O-O {[%emt 0:03:02]} 7. f3 {[%emt 0:00:32]} Re8 {[%emt 0:02:44]} 8. O-O-O {[%emt 0:00:46]} d6 {[%emt 0:01:53]} 9. g4 {[%emt 0:02:39]} Be6 {[%emt 0:03:42]} 10. Qb5 {[%emt 0:01:56]} Rb8 {[%emt 0:10:40]} 11. h4 {[%emt 0:02:51]} a6 {[%emt 0:05:25]} 12. Qe2 {[%emt 0:03:12]} Ne5 {[%emt 0:21:50]} 13. Qh2 {[%emt 0:04:38]} c6 {[%emt 0:07:25]} 14. h5 {[%emt 0:03:10]} Qa5 {[%emt 0:04:22]} 15. Qg2 {[%emt 0:10:26]} Bxc3 {[%emt 0:09:30]} 16. Bxc3 {[%emt 0:02:04]} Qxa2 {[%emt 0:00:32]} 17. g5 {[%emt 0:00:13]} Nfd7 {[%emt 0:01:02]} 18. b3 {[%emt 0:03:43]} Nc5 {[%emt 0:02:07]} 19. g6 {[%emt 0:03:10]} Bxb3 {[%emt 0:04:10]} 20. gxh7+ {[%emt 0:00:42]} Kxh7 {[%emt 0:01:36]} 21. f4 Bxc2 {[%emt 0:01:30]} 22. Qxc2 {[%emt 0:06:04]} Nb3+ {[%emt 0:00:11]} 0-1

[Event "Hungarian Youth-ch U10 2022"]
[Site "Eger"]
[Date "2022.07.24"]
[Round "2.5"]
[White "Szollosi, Balazs"]
[Black "Hegedus, Bernat"]
[Result "0-1"]
[ECO "B95"]
[WhiteElo "1423"]
[BlackElo "1491"]
[Annotator "NA RC COMBH"]
[PlyCount "66"]
[EventDate "2022.07.21"]
[EventType "tourn"]
[EventCountry "HUN"]
[SourceTitle "playchess.com"]
[Source "ChessBase"]
[SourceQuality "1"]
[TimeControl "40/5400+30:1800+30"]

1. e4 {[%emt 0:00:32]} c5 {[%emt 0:00:36]} 2. Nf3 {[%emt 0:00:07]} d6 {[%emt 0:00:13]} 3. d4 {[%emt 0:00:10]} cxd4 {[%emt 0:00:16]} 4. Nxd4 {[%emt 0:00:19]} Nf6 {[%emt 0:00:11]} 5. Nc3 {[%emt 0:00:16]} a6 {[%emt 0:00:23]} 6. Bg5 {[%emt 0:03:05]} e6 {[%emt 0:01:12]} 7. Be2 {[%emt 0:01:39]} Be7 {[%emt 0:02:54]} 8. O-O {[%emt 0:00:20]} O-O {[%emt 0:00:45]} 9. Re1 {[%emt 0:02:37]} Nxe4 {[%emt 0:20:14]} 10. Nxe4 {[%emt 0:07:06]} Bxg5 {[%emt 0:00:57]} 11. Nxg5 {[%emt 0:03:48]} Qxg5 {[%emt 0:00:49]} 12. Nf3 {[%emt 0:01:52]} Qe7 {[%emt 0:02:54]} 13. Bd3 {[%emt 0:03:17]} Nc6 {[%emt 0:03:44]} 14. c3 {[%emt 0:00:36]} b6 {[%emt 0:02:10]} 15. Qa4 {[%emt 0:04:27]} Bb7 {[%emt 0:00:49]} 16. Qg4 {[%emt 0:00:59]} h6 {[%emt 0:04:35]} 17. Rad1 {[%emt 0:01:56]} Rac8 {[%emt 0:04:34]} 18. Qg3 {[%emt 0:00:56]} Rfd8 {[%emt 0:02:22]} 19. Nh4 {[%emt 0:01:55]} Qf8 {[%emt 0:01:21]} 20. Nf3 {[%emt 0:01:20]} Na5 {[%emt 0:02:28]} 21. Nd4 {[%emt 0:01:56]} Nc4 {[%emt 0:01:39]} 22. b3 {[%emt 0:02:26]} Ne5 {[%emt 0:00:55]} 23. c4 {[%emt 0:01:52]} Nxd3 {[%emt 0:01:14]} 24. Rxd3 {[%emt 0:00:17]} Rc5 {[%emt 0:00:37]} 25. Nf3 {[%emt 0:04:49]} e5 {[%emt 0:03:06]} 26. Nd2 {[%emt 0:01:46]} f5 {[%emt 0:02:04]} 27. Qg6 {[%emt 0:03:03]} e4 {[%emt 0:02:26]} 28. Rh3 {[%emt 0:00:55]} Kh8 {[%emt 0:02:02]} 29. Rh5 {[%emt 0:01:29]} Re5 {[%emt 0:01:03]} 30. Nf1 {[%emt 0:12:31]} Bc6 {[%emt 0:02:20]} 31. Ng3 {[%emt 0:00:43]} Be8 {[%emt 0:01:05]} 32. Qg5 {[%emt 0:01:24]} Bxh5 {[%emt 0:00:27]} 33. Qxh5 {[%emt 0:01:31]} f4 {[%emt 0:00:46]} 0-1

[Event "Hungarian Youth-ch U10 2022"]
[Site "Eger"]
[Date "2022.07.24"]
[Round "2.6"]
[White "Hangay, Lilla"]
[Black "Ferenczy, Nora"]
[Result "1-0"]
[ECO "B47"]
[WhiteElo "1169"]
[BlackElo "1051"]
[Annotator "NA COMBH"]
[PlyCount "95"]
[EventDate "2022.07.21"]
[EventType "tourn"]
[EventCountry "HUN"]
[SourceTitle "playchess.com"]
[Source "ChessBase"]
[SourceQuality "1"]
[TimeControl "40/5400+30:1800+30"]

1. e4 {[%emt 0:00:33]} c5 {[%emt 0:00:51]} 2. Nf3 {[%emt 0:00:14]} e6 {[%emt 0:00:26]} 3. d4 {[%emt 0:00:13]} cxd4 {[%emt 0:00:36]} 4. Nxd4 {[%emt 0:00:08]} Nc6 {[%emt 0:00:41]} 5. Nc3 {[%emt 0:00:28]} Qc7 {[%emt 0:01:06]} 6. g3 {[%emt 0:00:22]} a6 {[%emt 0:01:01]} 7. Bg2 {[%emt 0:01:03]} Nf6 {[%emt 0:00:11]} 8. O-O {[%emt 0:00:16]} Bc5 {[%emt 0:00:59]} 9. Nxc6 {[%emt 0:01:18]} dxc6 {[%emt 0:00:52]} 10. Re1 {[%emt 0:01:20]} e5 {[%emt 0:01:26]} 11. Be3 {[%emt 0:03:59]} Qa5 {[%emt 0:10:04]} 12. Bxc5 {[%emt 0:07:06]} Qxc5 {[%emt 0:00:23]} 13. Na4 {[%emt 0:00:41]} Qb4 {[%emt 0:13:52]} 14. c3 {[%emt 0:01:12]} Qe7 {[%emt 0:09:37]} 15. Nb6 {[%emt 0:07:32]} Rb8 {[%emt 0:01:21]} 16. Nxc8 {[%emt 0:02:22]} Rxc8 {[%emt 0:00:38]} 17. Qf3 {[%emt 0:01:25]} O-O {[%emt 0:02:31]} 18. Qf5 {[%emt 0:01:15]} Rcd8 {[%emt 0:04:33]} 19. Red1 {[%emt 0:05:18]} Rxd1+ {[%emt 0:04:10]} 20. Rxd1 {[%emt 0:00:24]} Rd8 {[%emt 0:00:22]} 21. Rxd8+ {[%emt 0:00:54]} Qxd8 {[%emt 0:00:19]} 22. Qxe5 {[%emt 0:00:37]} h6 {[%emt 0:05:16]} 23. Qd4 {[%emt 0:01:12]} Qa5 {[%emt 0:02:09]} 24. e5 {[%emt 0:03:50]} Nd5 {[%emt 0:03:58]} 25. a3 {[%emt 0:03:49]} Nb6 {[%emt 0:14:17]} 26. b4 {[%emt 0:04:04]} Qb5 {[%emt 0:01:35]} 27. Bf1 {[%emt 0:00:18]} Qd5 {[%emt 0:04:27]} 28. Qxb6 {[%emt 0:00:25]} Qxe5 {[%emt 0:00:18]} 29. Qxb7 {[%emt 0:01:02]} Qxc3 {[%emt 0:01:11]} 30. Qxa6 {[%emt 0:00:16]} g6 {[%emt 0:01:44]} 31. Qc8+ {[%emt 0:00:29]} Kg7 {[%emt 0:01:07]} 32. b5 {[%emt 0:00:21]} c5 {[%emt 0:00:51]} 33. a4 {[%emt 0:00:35]} Qb4 {[%emt 0:01:07]} 34. a5 {[%emt 0:00:35]} Qxa5 {[%emt 0:00:16]} 35. Qxc5 {[%emt 0:00:12]} Qa1 {[%emt 0:01:10]} 36. b6 {[%emt 0:00:19]} Qb2 {[%emt 0:00:33]} 37. Qc7 {[%emt 0:00:34]} Qb1 {[%emt 0:00:58]} 38. b7 {[%emt 0:00:10]} g5 {[%emt 0:01:02]} 39. b8=R {[%emt 0:00:36]} Qe4 {[%emt 0:00:52]} 40. Qc3+ {[%emt 0:00:00]} f6 {[%emt 0:00:00]} 41. Qc7+ {[%emt 0:01:05]} Kg6 {[%emt 0:01:50]} 42. Rg8+ {[%emt 0:00:19]} Kh5 {[%emt 0:01:06]} 43. Qf7+ {[%emt 0:00:15]} Kg4 {[%emt 0:00:17]} 44. Qxf6 {[%emt 0:00:27]} Qf5 {[%emt 0:01:39]} 45. Be2+ {[%emt 0:00:36]} Qf3 {[%emt 0:01:56]} 46. Rxg5+ {[%emt 0:00:28]} Kh3 {[%emt 0:01:34]} 47. Bf1+ {[%emt 0:00:23]} Qg2+ {[%emt 0:00:18]} 48. Bxg2# 1-0

[Event "Hungarian Youth-ch U10 2022"]
[Site "Eger"]
[Date "2022.07.24"]
[Round "2.6"]
[White "Hangyal, Anna"]
[Black "Csiszar, Vivien"]
[Result "*"]
[WhiteElo "1154"]
[BlackElo "1068"]
[Annotator "NA RC COMBH"]
[PlyCount "31"]
[EventDate "2022.07.21"]
[EventType "tourn"]
[EventCountry "HUN"]
[SourceTitle "playchess.com"]
[Source "ChessBase"]
[SourceQuality "1"]
[TimeControl "40/5400+30:1800+30"]

1. e4 {[%emt 0:00:33]} c5 {[%emt 0:00:51]} 2. Nf3 {[%emt 0:00:14]} e6 {[%emt 0:00:26]} 3. d4 {[%emt 0:00:13]} cxd4 {[%emt 0:00:36]} 4. Nxd4 {[%emt 0:00:08]} Nc6 {[%emt 0:00:41]} 5. Nc3 {[%emt 0:00:28]} Qc7 {[%emt 0:01:06]} 6. g3 {[%emt 0:00:22]} a6 {[%emt 0:01:01]} 7. Bg2 {[%emt 0:01:03]} Nf6 {[%emt 0:00:11]} 8. O-O {[%emt 0:00:16]} Bc5 {[%emt 0:00:59]} 9. Nxc6 {[%emt 0:01:18]} dxc6 {[%emt 0:00:52]} 10. Re1 {[%emt 0:01:20]} e5 {[%emt 0:01:26]} 11. Be3 {[%emt 0:03:59]} Qa5 {[%emt 0:10:04]} 12. Bxc5 {[%emt 0:07:06]} Qxc5 {[%emt 0:00:23]} 13. Na4 {[%emt 0:00:41]} Qb4 {[%emt 0:13:52]} 14. c3 {[%emt 0:01:12]} Qe7 {[%emt 0:09:37]} 15. Nb6 {[%emt 0:07:32]} Rb8 {[%emt 0:01:21]} 16. Nxc8 {[%emt 0:02:22]} *

[Event "Hungarian Youth-ch U10 2022"]
[Site "Eger"]
[Date "2022.07.24"]
[Round "2.7"]
[White "Illes-Nagy, Nora"]
[Black "Biro, Csilla"]
[Result "1-0"]
[ECO "D35"]
[WhiteElo "1402"]
[BlackElo "1215"]
[Annotator "NA RC COMBH"]
[PlyCount "103"]
[EventDate "2022.07.21"]
[EventType "tourn"]
[EventCountry "HUN"]
[SourceTitle "playchess.com"]
[Source "ChessBase"]
[SourceQuality "1"]
[TimeControl "40/5400+30:1800+30"]

1. d4 {[%emt 0:00:33]} e6 {[%emt 0:00:41]} 2. c4 {[%emt 0:00:20]} d5 {[%emt 0:00:18]} 3. Nc3 {[%emt 0:00:58]} Nf6 {[%emt 0:01:02]} 4. cxd5 {[%emt 0:02:11]} exd5 {[%emt 0:01:26]} 5. Bg5 {[%emt 0:01:00]} Be7 {[%emt 0:00:45]} 6. e3 {[%emt 0:00:56]} O-O {[%emt 0:01:49]} 7. Qc2 {[%emt 0:02:28]} b6 {[%emt 0:02:29]} 8. Bd3 {[%emt 0:01:29]} Nbd7 {[%emt 0:08:58]} 9. Nf3 {[%emt 0:02:58]} Bb7 {[%emt 0:02:22]} 10. h3 {[%emt 0:05:45]} c5 {[%emt 0:05:40]} 11. dxc5 {[%emt 0:02:00]} Bxc5 {[%emt 0:01:48]} 12. Bxh7+ {[%emt 0:00:38]} Kh8 {[%emt 0:04:17]} 13. Bf5 {[%emt 0:02:19]} Qc7 {[%emt 0:07:51]} 14. O-O {[%emt 0:06:49]} Rfe8 {[%emt 0:05:52]} 15. Nb5 {[%emt 0:03:27]} Qc6 {[%emt 0:05:36]} 16. Nfd4 {[%emt 0:02:15]} Bxd4 {[%emt 0:04:10]} 17. Qxc6 {[%emt 0:00:35]} Bxc6 {[%emt 0:00:21]} 18. Nxd4 {[%emt 0:00:08]} Bb7 {[%emt 0:01:17]} 19. Nb5 {[%emt 0:01:14]} Ba6 {[%emt 0:01:35]} 20. Nc7 {[%emt 0:04:45]} Bxf1 {[%emt 0:01:20]} 21. Nxe8 {[%emt 0:01:44]} Bc4 {[%emt 0:07:37]} 22. Nxf6 {[%emt 0:00:58]} gxf6 {[%emt 0:01:41]} 23. Bxd7 {[%emt 0:01:51]} fxg5 {[%emt 0:00:12]} 24. b3 {[%emt 0:00:19]} Rd8 {[%emt 0:02:15]} 25. bxc4 {[%emt 0:00:46]} Rxd7 {[%emt 0:00:30]} 26. Rd1 {[%emt 0:00:05]} Kg7 {[%emt 0:01:12]} 27. cxd5 {[%emt 0:00:15]} Kf6 {[%emt 0:00:40]} 28. Kf1 {[%emt 0:01:06]} Ke5 {[%emt 0:00:53]} 29. d6 {[%emt 0:00:34]} Rxd6 {[%emt 0:01:15]} 30. Rxd6 {[%emt 0:00:06]} Kxd6 {[%emt 0:00:11]} 31. Ke2 {[%emt 0:00:16]} Kd5 {[%emt 0:05:51]} 32. Kd3 {[%emt 0:02:27]} a5 {[%emt 0:02:25]} 33. g3 {[%emt 0:02:02]} b5 {[%emt 0:05:44]} 34. f4 {[%emt 0:02:36]} gxf4 {[%emt 0:01:57]} 35. gxf4 {[%emt 0:00:55]} b4 {[%emt 0:02:39]} 36. e4+ {[%emt 0:00:51]} Ke6 {[%emt 0:02:48]} 37. h4 {[%emt 0:00:34]} Kf6 {[%emt 0:01:26]} 38. Kc4 {[%emt 0:00:38]} Kg6 {[%emt 0:01:07]} 39. Kb5 {[%emt 0:00:16]} Kh5 {[%emt 0:00:48]} 40. Kxa5 {[%emt 0:00:00]} Kxh4 {[%emt 0:00:00]} 41. Kxb4 {[%emt 0:00:19]} Kg4 {[%emt 0:01:31]} 42. a4 {[%emt 0:00:27]} Kxf4 {[%emt 0:00:15]} 43. a5 {[%emt 0:00:06]} Kxe4 {[%emt 0:00:27]} 44. a6 {[%emt 0:00:03]} f5 {[%emt 0:00:12]} 45. a7 {[%emt 0:00:03]} f4 {[%emt 0:00:24]} 46. a8=Q+ {[%emt 0:00:09]} Ke3 {[%emt 0:00:10]} 47. Kc3 {[%emt 0:00:27]} f3 {[%emt 0:00:47]} 48. Qe8+ {[%emt 0:00:17]} Kf2 {[%emt 0:01:44]} 49. Kd2 {[%emt 0:00:43]} Kg2 {[%emt 0:02:03]} 50. Ke3 {[%emt 0:00:30]} f2 {[%emt 0:03:21]} 51. Qg6+ {[%emt 0:00:11]} Kf1 {[%emt 0:00:25]} 52. Qf7 {[%emt 0:00:27]} 1-0

[Event "Hungarian Youth-ch U10 2022"]
[Site "Eger"]
[Date "2022.07.24"]
[Round "2.8"]
[White "Hangay, Lilla"]
[Black "Ferenczy, Nora"]
[Result "*"]
[WhiteElo "1169"]
[BlackElo "1051"]
[Annotator "NA RC COMBH"]
[PlyCount "26"]
[EventDate "2022.07.21"]
[EventType "tourn"]
[EventCountry "HUN"]
[SourceTitle "playchess.com"]
[Source "ChessBase"]
[SourceQuality "1"]
[TimeControl "40/5400+30:1800+30"]

1. e4 {[%emt 0:00:36]} c5 {[%emt 0:00:42]} 2. Nf3 {[%emt 0:00:15]} Nc6 {[%emt 0:00:09]} 3. Nc3 {[%emt 0:00:14]} d6 {[%emt 0:02:19]} 4. d4 {[%emt 0:00:54]} cxd4 {[%emt 0:00:30]} 5. Nxd4 {[%emt 0:00:12]} Nf6 {[%emt 0:01:23]} 6. Bc4 {[%emt 0:04:08]} g6 {[%emt 0:02:15]} 7. Nd5 {[%emt 0:14:39]} Nxe4 {[%emt 0:14:11]} 8. Nb5 {[%emt 0:00:21]} Bg7 {[%emt 0:07:46]} 9. Nbc7+ {[%emt 0:00:59]} Kf8 {[%emt 0:00:12]} 10. Nxa8 {[%emt 0:00:15]} e6 {[%emt 0:00:32]} 11. Nac7 {[%emt 0:01:11]} exd5 {[%emt 0:00:47]} 12. Nxd5 {[%emt 0:00:14]} Qa5+ {[%emt 0:06:05]} 13. c3 {[%emt 0:02:19]} Qc5 {[%emt 0:05:37]} *

[Event "Hungarian Youth-ch U10 2022"]
[Site "Eger"]
[Date "2022.07.24"]
[Round "2.8"]
[White "Hangyal, Anna"]
[Black "Csiszar, Vivien"]
[Result "1-0"]
[ECO "B57"]
[WhiteElo "1154"]
[BlackElo "1068"]
[Annotator "NA COMBH"]
[PlyCount "67"]
[EventDate "2022.07.21"]
[EventType "tourn"]
[EventCountry "HUN"]
[SourceTitle "playchess.com"]
[Source "ChessBase"]
[SourceQuality "1"]
[TimeControl "40/5400+30:1800+30"]

1. e4 {[%emt 0:00:36]} c5 {[%emt 0:00:42]} 2. Nf3 {[%emt 0:00:15]} Nc6 {[%emt 0:00:09]} 3. Nc3 {[%emt 0:00:14]} d6 {[%emt 0:02:19]} 4. d4 {[%emt 0:00:54]} cxd4 {[%emt 0:00:30]} 5. Nxd4 {[%emt 0:00:12]} Nf6 {[%emt 0:01:23]} 6. Bc4 {[%emt 0:04:08]} g6 {[%emt 0:02:15]} 7. Nd5 {[%emt 0:14:39]} Nxe4 {[%emt 0:14:11]} 8. Nb5 {[%emt 0:00:21]} Bg7 {[%emt 0:07:46]} 9. Nbc7+ {[%emt 0:00:59]} Kf8 {[%emt 0:00:12]} 10. Nxa8 {[%emt 0:00:15]} e6 {[%emt 0:00:32]} 11. Nac7 {[%emt 0:01:11]} exd5 {[%emt 0:00:47]} 12. Nxd5 {[%emt 0:00:14]} Qa5+ {[%emt 0:06:05]} 13. c3 {[%emt 0:02:19]} Qc5 {[%emt 0:05:37]} 14. Qe2 {[%emt 0:06:53]} Bf5 {[%emt 0:12:41]} 15. O-O {[%emt 0:01:56]} Na5 {[%emt 0:02:28]} 16. Ne3 {[%emt 0:03:03]} Nxc3 {[%emt 0:07:06]} 17. bxc3 {[%emt 0:01:00]} Bxc3 {[%emt 0:00:05]} 18. Bb2 {[%emt 0:00:22]} Bxb2 {[%emt 0:00:19]} 19. Qxb2 {[%emt 0:00:10]} Kg8 {[%emt 0:07:37]} 20. Rac1 {[%emt 0:00:29]} Nxc4 {[%emt 0:01:26]} 21. Rxc4 {[%emt 0:00:28]} Qe5 {[%emt 0:00:15]} 22. Qxe5 {[%emt 0:00:52]} dxe5 {[%emt 0:00:12]} 23. Nxf5 {[%emt 0:00:07]} gxf5 {[%emt 0:00:30]} 24. Rc7 {[%emt 0:00:21]} b5 {[%emt 0:00:21]} 25. Rxa7 {[%emt 0:00:08]} Kg7 {[%emt 0:00:14]} 26. Ra5 {[%emt 0:00:12]} Rb8 {[%emt 0:00:12]} 27. Rb1 {[%emt 0:00:10]} f4 {[%emt 0:00:13]} 28. Raxb5 {[%emt 0:00:10]} Re8 {[%emt 0:00:40]} 29. Re1 {[%emt 0:00:11]} e4 {[%emt 0:00:07]} 30. Rb4 {[%emt 0:00:10]} e3 {[%emt 0:00:08]} 31. Rxf4 {[%emt 0:00:21]} e2 {[%emt 0:00:16]} 32. f3 {[%emt 0:00:09]} Kg6 {[%emt 0:00:14]} 33. Kf2 {[%emt 0:00:14]} Kg5 {[%emt 0:00:07]} 34. Rxf7 {[%emt 0:00:13]} 1-0

[Event "Hungarian Youth-ch U10 2022"]
[Site "Eger"]
[Date "2022.07.25"]
[Round "3.1"]
[White "Hegedus, Bernat"]
[Black "Morovan-Szabo, Lorinc"]
[Result "1-0"]
[ECO "D35"]
[WhiteElo "1491"]
[BlackElo "1232"]
[Annotator "NA RC COMBH"]
[PlyCount "69"]
[EventDate "2022.07.21"]
[EventType "tourn"]
[EventCountry "HUN"]
[SourceTitle "playchess.com"]
[Source "ChessBase"]
[SourceQuality "1"]
[TimeControl "40/5400+30:1800+30"]

1. d4 {[%emt 0:00:32]} d5 {[%emt 0:01:01]} 2. c4 {[%emt 0:00:23]} e6 {[%emt 0:00:17]} 3. Nc3 {[%emt 0:00:37]} Nf6 {[%emt 0:00:35]} 4. cxd5 {[%emt 0:00:45]} Nxd5 {[%emt 0:02:28]} 5. e4 {[%emt 0:02:16]} Nxc3 {[%emt 0:00:27]} 6. bxc3 {[%emt 0:01:10]} c5 {[%emt 0:01:35]} 7. Nf3 {[%emt 0:02:08]} a6 {[%emt 0:05:06]} 8. Be2 {[%emt 0:07:24]} cxd4 {[%emt 0:02:14]} 9. cxd4 {[%emt 0:00:40]} Nc6 {[%emt 0:01:48]} 10. O-O {[%emt 0:02:15]} Be7 {[%emt 0:00:50]} 11. Rb1 {[%emt 0:07:26]} h6 {[%emt 0:01:45]} 12. Qa4 {[%emt 0:03:47]} O-O {[%emt 0:02:40]} 13. Rd1 {[%emt 0:02:00]} Qa5 {[%emt 0:01:49]} 14. Qxa5 {[%emt 0:05:02]} Nxa5 {[%emt 0:01:01]} 15. Bd2 {[%emt 0:02:43]} Bd8 {[%emt 0:03:28]} 16. d5 {[%emt 0:01:37]} b5 {[%emt 0:00:41]} 17. d6 {[%emt 0:02:36]} f6 {[%emt 0:02:33]} 18. Nh4 {[%emt 0:02:13]} Nc6 {[%emt 0:12:51]} 19. Ng6 {[%emt 0:01:18]} Rf7 {[%emt 0:01:23]} 20. Bh5 {[%emt 0:00:40]} Rd7 {[%emt 0:00:42]} 21. Bf4 {[%emt 0:00:48]} e5 {[%emt 0:00:28]} 22. Be3 {[%emt 0:00:38]} Nd4 {[%emt 0:01:52]} 23. Bxd4 {[%emt 0:00:45]} exd4 {[%emt 0:00:20]} 24. Rxd4 {[%emt 0:00:42]} Bb7 {[%emt 0:01:56]} 25. Bg4 {[%emt 0:01:03]} Bxe4 {[%emt 0:04:04]} 26. Rxe4 {[%emt 0:01:20]} Rxd6 {[%emt 0:00:16]} 27. Bf5 {[%emt 0:01:31]} Ba5 {[%emt 0:02:10]} 28. a4 {[%emt 0:01:42]} b4 {[%emt 0:00:25]} 29. Rbe1 {[%emt 0:01:33]} Rdd8 {[%emt 0:02:18]} 30. Ne7+ {[%emt 0:02:45]} Kh8 {[%emt 0:06:47]} 31. Nc6 {[%emt 0:00:53]} g6 {[%emt 0:00:41]} 32. Nxd8 {[%emt 0:00:20]} gxf5 {[%emt 0:00:38]} 33. Re8+ {[%emt 0:01:05]} Kh7 {[%emt 0:00:20]} 34. Nc6 {[%emt 0:00:17]} Rxe8 {[%emt 0:00:30]} 35. Rxe8 {[%emt 0:00:53]} 1-0

[Event "Hungarian Youth-ch U10 2022"]
[Site "Eger"]
[Date "2022.07.25"]
[Round "3.2"]
[White "Hangay, Oliver"]
[Black "Szollosi, Balazs"]
[Result "1-0"]
[ECO "B43"]
[WhiteElo "1695"]
[BlackElo "1423"]
[Annotator "NA RC COMBH"]
[PlyCount "95"]
[EventDate "2022.07.21"]
[EventType "tourn"]
[EventCountry "HUN"]
[SourceTitle "playchess.com"]
[Source "ChessBase"]
[SourceQuality "1"]
[TimeControl "40/5400+30:1800+30"]

1. e4 {[%emt 0:00:48]} c5 {[%emt 0:00:40]} 2. Nf3 {[%emt 0:00:12]} e6 {[%emt 0:00:09]} 3. d4 {[%emt 0:00:31]} cxd4 {[%emt 0:00:19]} 4. Nxd4 {[%emt 0:00:05]} a6 {[%emt 0:00:09]} 5. Nc3 {[%emt 0:01:22]} Qc7 {[%emt 0:00:24]} 6. g3 {[%emt 0:02:45]} Nf6 {[%emt 0:00:37]} 7. Bg2 {[%emt 0:02:06]} Nc6 {[%emt 0:00:21]} 8. O-O {[%emt 0:00:59]} Be7 {[%emt 0:01:31]} 9. Re1 {[%emt 0:03:21]} O-O {[%emt 0:00:28]} 10. Nxc6 {[%emt 0:04:32]} bxc6 {[%emt 0:00:24]} 11. e5 {[%emt 0:02:34]} Nd5 {[%emt 0:01:15]} 12. Nxd5 {[%emt 0:00:33]} cxd5 {[%emt 0:00:47]} 13. Qd3 {[%emt 0:08:52]} Bb7 {[%emt 0:01:11]} 14. Bf4 {[%emt 0:08:00]} Rac8 {[%emt 0:00:53]} 15. c3 {[%emt 0:02:21]} Rfd8 {[%emt 0:02:31]} 16. h4 {[%emt 0:05:59]} Bc5 {[%emt 0:02:40]} 17. Be3 {[%emt 0:05:00]} Bxe3 {[%emt 0:04:33]} 18. Qxe3 {[%emt 0:04:55]} d6 {[%emt 0:02:03]} 19. Rad1 {[%emt 0:03:12]} dxe5 {[%emt 0:00:30]} 20. Qxe5 {[%emt 0:00:11]} Qxe5 {[%emt 0:00:36]} 21. Rxe5 {[%emt 0:00:21]} Rd6 {[%emt 0:03:25]} 22. Rde1 {[%emt 0:04:16]} Rb6 {[%emt 0:01:31]} 23. R1e2 {[%emt 0:02:52]} h6 {[%emt 0:00:59]} 24. f4 {[%emt 0:01:29]} g6 {[%emt 0:02:34]} 25. h5 {[%emt 0:05:50]} gxh5 {[%emt 0:02:31]} 26. Rxh5 {[%emt 0:01:34]} Kg7 {[%emt 0:00:27]} 27. Rhe5 {[%emt 0:00:27]} Rd8 {[%emt 0:02:55]} 28. f5 {[%emt 0:06:30]} exf5 {[%emt 0:00:11]} 29. Rxf5 {[%emt 0:00:18]} Kg6 {[%emt 0:03:22]} 30. Rf4 {[%emt 0:00:51]} Re6 {[%emt 0:02:33]} 31. Rd2 {[%emt 0:01:38]} Red6 {[%emt 0:08:49]} 32. c4 {[%emt 0:03:16]} a5 {[%emt 0:05:50]} 33. cxd5 {[%emt 0:01:42]} f5 {[%emt 0:03:56]} 34. Ra4 {[%emt 0:02:34]} Ra6 {[%emt 0:02:39]} 35. b4 {[%emt 0:02:19]} axb4 {[%emt 0:00:44]} 36. Rxb4 {[%emt 0:00:06]} Ba8 {[%emt 0:01:02]} 37. Rdb2 {[%emt 0:02:46]} Rad6 {[%emt 0:01:09]} 38. Rb6 {[%emt 0:01:17]} Rxb6 {[%emt 0:00:36]} 39. Rxb6+ {[%emt 0:00:07]} Kg5 {[%emt 0:00:09]} 40. d6 {[%emt 0:00:00]} Bxg2 {[%emt 0:00:00]} 41. Kxg2 {[%emt 0:03:52]} Ra8 {[%emt 0:00:41]} 42. Rb2 {[%emt 0:01:01]} Rd8 {[%emt 0:00:19]} 43. Rd2 {[%emt 0:00:23]} f4 {[%emt 0:00:21]} 44. Rd5+ {[%emt 0:00:56]} Kg4 {[%emt 0:00:26]} 45. Rd4 {[%emt 0:00:18]} Kf5 {[%emt 0:00:23]} 46. gxf4 {[%emt 0:00:19]} h5 {[%emt 0:00:14]} 47. d7 {[%emt 0:00:43]} h4 {[%emt 0:00:10]} 48. Kh3 {[%emt 0:00:08]} 1-0

[Event "Hungarian Youth-ch U10 2022"]
[Site "Eger"]
[Date "2022.07.25"]
[Round "3.3"]
[White "Hegedus, Zsombor"]
[Black "Molnar-Saska, Tamas"]
[Result "1-0"]
[ECO "B03"]
[WhiteElo "1348"]
[BlackElo "1455"]
[Annotator "NA RC COMBH"]
[PlyCount "73"]
[EventDate "2022.07.21"]
[EventType "tourn"]
[EventCountry "HUN"]
[SourceTitle "playchess.com"]
[Source "ChessBase"]
[SourceQuality "1"]
[TimeControl "40/5400+30:1800+30"]

1. e4 {[%emt 0:00:33]} Nf6 {[%emt 0:00:50]} 2. e5 {[%emt 0:00:13]} Nd5 {[%emt 0:00:05]} 3. c4 {[%emt 0:00:11]} Nb6 {[%emt 0:00:08]} 4. d4 {[%emt 0:00:07]} d6 {[%emt 0:00:07]} 5. exd6 {[%emt 0:00:26]} exd6 {[%emt 0:00:20]} 6. Nc3 {[%emt 0:00:59]} Be7 {[%emt 0:00:57]} 7. Be3 {[%emt 0:01:58]} O-O {[%emt 0:01:37]} 8. Be2 {[%emt 0:01:00]} Nc6 {[%emt 0:01:04]} 9. Nf3 {[%emt 0:00:45]} Bg4 {[%emt 0:07:19]} 10. b3 {[%emt 0:04:10]} Bf6 {[%emt 0:11:03]} 11. h3 {[%emt 0:02:49]} Bf5 {[%emt 0:03:05]} 12. O-O {[%emt 0:05:09]} Qe7 {[%emt 0:05:05]} 13. Re1 {[%emt 0:05:03]} Nb4 {[%emt 0:02:53]} 14. Rc1 {[%emt 0:11:21]} a5 {[%emt 0:07:58]} 15. a3 Nc6 {[%emt 0:06:26]} 16. Bd3 {[%emt 0:03:05]} Bxd3 {[%emt 0:01:31]} 17. Qxd3 {[%emt 0:00:18]} Qd7 {[%emt 0:00:41]} 18. Rcd1 {[%emt 0:07:07]} Rfe8 {[%emt 0:02:38]} 19. Ne4 {[%emt 0:02:04]} Be7 {[%emt 0:02:35]} 20. Nfg5 {[%emt 0:09:15]} h6 {[%emt 0:03:04]} 21. Nc5 {[%emt 0:07:45]} hxg5 {[%emt 0:00:53]} 22. Nxd7 {[%emt 0:00:07]} Nxd7 {[%emt 0:00:13]} 23. f4 {[%emt 0:00:54]} gxf4 {[%emt 0:00:37]} 24. Bxf4 {[%emt 0:00:37]} Bf6 {[%emt 0:00:15]} 25. Rxe8+ {[%emt 0:00:16]} Rxe8 {[%emt 0:00:10]} 26. d5 {[%emt 0:01:03]} Nce5 {[%emt 0:00:45]} 27. Bxe5 {[%emt 0:00:19]} Bxe5 {[%emt 0:00:33]} 28. b4 {[%emt 0:01:06]} axb4 {[%emt 0:00:34]} 29. axb4 {[%emt 0:00:10]} Ra8 {[%emt 0:00:11]} 30. Qf5 {[%emt 0:00:20]} Nf6 {[%emt 0:00:26]} 31. c5 {[%emt 0:00:24]} g6 {[%emt 0:00:43]} 32. Qg5 {[%emt 0:01:05]} Ra4 {[%emt 0:00:46]} 33. cxd6 {[%emt 0:00:48]} cxd6 {[%emt 0:00:40]} 34. Rf1 {[%emt 0:01:51]} Nxd5 {[%emt 0:01:13]} 35. Qd8+ {[%emt 0:00:23]} Kg7 {[%emt 0:00:27]} 36. Qd7 {[%emt 0:00:13]} Nf4 {[%emt 0:00:40]} 37. Rxf4 1-0